[Event "Titled Tuesday Blitz July 13 2021"]
[White "Rustemov, Alexander"]
[Black "Siniauski, Artsiom"]
[WhiteFideId "4119002"]
[BlackFideId "13512269"]
[WhiteElo "2763"]
[BlackElo "2210"]
[Result "1-0"]
[Round "03"]
[TimeControl "180+1"]
[Date "2021.07.13"]
[WhiteClock "0:00:18"]
[BlackClock "0:00:05"]

1. d4 {[%clk 0:03:00]}  Nf6 {[%clk 0:03:00]} 2. c4 {[%clk 0:03:01]}  e6 {[%clk 0:02:59]} 3. Nf3 {[%clk 0:03:01]}  b6 {[%clk 0:02:59]} 4. a3 {[%clk 0:03:01]}  Bb7 {[%clk 0:02:59]} 5. Nc3 {[%clk 0:03:02]}  d5 {[%clk 0:02:58]} 6. Bg5 {[%clk 0:03:02]}  Be7 {[%clk 0:02:57]} 7. Bxf6 {[%clk 0:03:02]}  Bxf6 {[%clk 0:02:57]} 8. cxd5 {[%clk 0:03:03]}  exd5 {[%clk 0:02:56]} 9. Qa4+ {[%clk 0:03:04]}  Qd7 {[%clk 0:02:55]} 10. Qxd7+ {[%clk 0:03:02]}  Nxd7 {[%clk 0:02:56]} 11. e3 {[%clk 0:03:01]}  O-O {[%clk 0:02:54]} 12. Rc1 {[%clk 0:02:59]}  c5 {[%clk 0:02:49]} 13. Kd2 {[%clk 0:02:39]}  Rfc8 {[%clk 0:02:44]} 14. g3 {[%clk 0:02:35]}  Nf8 {[%clk 0:02:42]} 15. Bh3 {[%clk 0:02:34]}  Ne6 {[%clk 0:02:42]} 16. Ne2 {[%clk 0:02:23]}  Rc7 {[%clk 0:02:35]} 17. Nf4 {[%clk 0:02:20]}  Nxf4 {[%clk 0:02:34]} 18. gxf4 {[%clk 0:02:19]}  Bc8 {[%clk 0:02:33]} 19. Bxc8 {[%clk 0:02:15]}  Raxc8 {[%clk 0:02:33]} 20. Kd3 {[%clk 0:02:09]}  cxd4 {[%clk 0:02:23]} 21. Rxc7 {[%clk 0:02:07]}  Rxc7 {[%clk 0:02:24]} 22. Nxd4 {[%clk 0:01:52]}  Bxd4 {[%clk 0:02:17]} 23. exd4 {[%clk 0:01:49]}  f6 {[%clk 0:01:55]} 24. f5 {[%clk 0:01:41]}  Kf7 {[%clk 0:01:55]} 25. Rg1 {[%clk 0:01:38]}  Rc8 {[%clk 0:01:47]} 26. h4 {[%clk 0:01:36]}  g6 {[%clk 0:01:42]} 27. fxg6+ {[%clk 0:01:33]}  hxg6 {[%clk 0:01:43]} 28. Re1 {[%clk 0:01:22]}  a5 {[%clk 0:01:27]} 29. b3 {[%clk 0:01:17]}  b5 {[%clk 0:01:21]} 30. Kd2 {[%clk 0:01:12]}  b4 {[%clk 0:01:18]} 31. axb4 {[%clk 0:01:11]}  axb4 {[%clk 0:01:18]} 32. Re3 {[%clk 0:01:09]}  Rh8 {[%clk 0:01:16]} 33. Rh3 {[%clk 0:01:09]}  g5 {[%clk 0:01:02]} 34. h5 {[%clk 0:01:08]}  g4 {[%clk 0:01:02]} 35. Rh1 {[%clk 0:01:07]}  f5 {[%clk 0:01:02]} 36. Ke3 {[%clk 0:01:07]}  Kf6 {[%clk 0:01:01]} 37. Kf4 {[%clk 0:01:07]}  Rh6 {[%clk 0:00:27]} 38. Rh2 {[%clk 0:01:05]}  Rh8 {[%clk 0:00:26]} 39. h6 {[%clk 0:01:04]}  Rh7 {[%clk 0:00:26]} 40. Rh1 {[%clk 0:01:03]}  Kg6 {[%clk 0:00:26]} 41. Ke5 {[%clk 0:01:02]}  Re7+ {[%clk 0:00:23]} 42. Kxd5 {[%clk 0:01:02]}  Kh7 {[%clk 0:00:23]} 43. Rh5 {[%clk 0:01:00]}  f4 {[%clk 0:00:21]} 44. Rg5 {[%clk 0:00:57]}  Re2 {[%clk 0:00:19]} 45. Rxg4 {[%clk 0:00:55]}  Rxf2 {[%clk 0:00:19]} 46. Kc4 {[%clk 0:00:50]}  Kxh6 {[%clk 0:00:17]} 47. Kxb4 {[%clk 0:00:49]}  Kh5 {[%clk 0:00:17]} 48. Rg8 {[%clk 0:00:49]}  Rd2 {[%clk 0:00:18]} 49. Kc3 {[%clk 0:00:48]}  Rd1 {[%clk 0:00:19]} 50. b4 {[%clk 0:00:46]}  f3 {[%clk 0:00:19]} 51. Rf8 {[%clk 0:00:45]}  Kg4 {[%clk 0:00:19]} 52. b5 {[%clk 0:00:45]}  Kg3 {[%clk 0:00:20]} 53. Kc4 {[%clk 0:00:32]}  f2 {[%clk 0:00:19]} 54. b6 {[%clk 0:00:30]}  Rc1+ {[%clk 0:00:19]} 55. Kb5 {[%clk 0:00:27]}  Rc3 {[%clk 0:00:18]} 56. Rxf2 {[%clk 0:00:24]}  Kxf2 {[%clk 0:00:19]} 57. b7 {[%clk 0:00:24]}  Ke3 {[%clk 0:00:19]} 58. d5 {[%clk 0:00:24]}  Ke4 {[%clk 0:00:10]} 59. d6 {[%clk 0:00:24]}  Rh3 {[%clk 0:00:08]} 60. Kc6 {[%clk 0:00:18]}  Rh8 {[%clk 0:00:08]} 61. d7 {[%clk 0:00:18]}  Ke5 {[%clk 0:00:04]} 62. Kc7 {[%clk 0:00:18]}  Ke6 {[%clk 0:00:05]} 63. d8=Q {[%clk 0:00:18]} 1-0


[Site "https://www.chess.com"]

[Event "Titled Tuesday Blitz July 13 2021"]
[White "Salik, Serkan"]
[Black "Holt, Conrad"]
[WhiteFideId "30952492"]
[BlackFideId "2034387"]
[WhiteElo "2433"]
[BlackElo "2586"]
[Result "1/2-1/2"]
[Round "03"]
[TimeControl "180+1"]
[Date "2021.07.13"]
[WhiteClock "0:00:10"]
[BlackClock "0:00:05"]

1. d4 {[%clk 0:03:00]}  d5 {[%clk 0:02:59]} 2. c4 {[%clk 0:02:59]}  c6 {[%clk 0:02:59]} 3. Nc3 {[%clk 0:02:59]}  dxc4 {[%clk 0:02:59]} 4. e4 {[%clk 0:02:56]}  b5 {[%clk 0:02:59]} 5. a4 {[%clk 0:02:52]}  b4 {[%clk 0:02:59]} 6. Nb1 {[%clk 0:02:44]}  Ba6 {[%clk 0:02:56]} 7. Nf3 {[%clk 0:02:43]}  e6 {[%clk 0:02:53]} 8. Qc2 {[%clk 0:02:38]}  Nf6 {[%clk 0:02:39]} 9. Nbd2 {[%clk 0:02:32]}  c3 {[%clk 0:02:26]} 10. bxc3 {[%clk 0:02:29]}  Bxf1 {[%clk 0:02:23]} 11. Nxf1 {[%clk 0:02:11]}  a5 {[%clk 0:02:22]} 12. c4 {[%clk 0:02:01]}  e5 {[%clk 0:02:15]} 13. dxe5 {[%clk 0:01:55]}  Nfd7 {[%clk 0:02:14]} 14. Bb2 {[%clk 0:01:52]}  Nc5 {[%clk 0:02:13]} 15. Rd1 {[%clk 0:01:48]}  Nbd7 {[%clk 0:02:13]} 16. Ng3 {[%clk 0:01:41]}  b3 {[%clk 0:02:09]} 17. Qe2 {[%clk 0:01:36]}  Nxa4 {[%clk 0:02:08]} 18. O-O {[%clk 0:01:29]}  Nxb2 {[%clk 0:02:04]} 19. Qxb2 {[%clk 0:01:29]}  Qb6 {[%clk 0:02:02]} 20. e6 {[%clk 0:01:20]}  fxe6 {[%clk 0:02:01]} 21. Ng5 {[%clk 0:01:19]}  c5 {[%clk 0:01:55]} 22. Qd2 {[%clk 0:00:58]}  O-O-O {[%clk 0:01:17]} 23. Nf7 {[%clk 0:00:54]}  Be7 {[%clk 0:01:18]} 24. Nxh8 {[%clk 0:00:48]}  Nf6 {[%clk 0:00:43]} 25. Qc3 {[%clk 0:00:20]}  Rxd1 {[%clk 0:00:20]} 26. Rxd1 {[%clk 0:00:21]}  a4 {[%clk 0:00:19]} 27. Ra1 {[%clk 0:00:13]}  a3 {[%clk 0:00:17]} 28. Rxa3 {[%clk 0:00:08]}  b2 {[%clk 0:00:17]} 29. Rb3 {[%clk 0:00:04]}  b1=Q+ {[%clk 0:00:15]} 30. Rxb1 {[%clk 0:00:05]}  Qxb1+ {[%clk 0:00:16]} 31. Nf1 {[%clk 0:00:05]}  Qxe4 {[%clk 0:00:09]} 32. Nf7 {[%clk 0:00:04]}  Qd4 {[%clk 0:00:07]} 33. Qb3 {[%clk 0:00:04]}  Ng4 {[%clk 0:00:07]} 34. Qf3 {[%clk 0:00:02]}  Bf6 {[%clk 0:00:06]} 35. h3 {[%clk 0:00:02]}  Ne5 {[%clk 0:00:06]} 36. Nxe5 {[%clk 0:00:02]}  Qxe5 {[%clk 0:00:07]} 37. Ne3 {[%clk 0:00:03]}  Kd7 {[%clk 0:00:07]} 38. g3 {[%clk 0:00:03]}  Ke8 {[%clk 0:00:07]} 39. Kg2 {[%clk 0:00:04]}  Kf7 {[%clk 0:00:08]} 40. Qb7+ {[%clk 0:00:05]}  Kg6 {[%clk 0:00:08]} 41. Qf3 {[%clk 0:00:05]}  h6 {[%clk 0:00:08]} 42. Ng4 {[%clk 0:00:05]}  Qd4 {[%clk 0:00:08]} 43. Ne3 {[%clk 0:00:05]}  Kf7 {[%clk 0:00:08]} 44. h4 {[%clk 0:00:06]}  Kg8 {[%clk 0:00:08]} 45. Qa8+ {[%clk 0:00:05]}  Kh7 {[%clk 0:00:08]} 46. Qc6 {[%clk 0:00:06]}  Qe5 {[%clk 0:00:08]} 47. Qf3 {[%clk 0:00:06]}  Be7 {[%clk 0:00:08]} 48. Ng4 {[%clk 0:00:06]}  Qf5 {[%clk 0:00:08]} 49. Ne3 {[%clk 0:00:06]}  Qd3 {[%clk 0:00:07]} 50. Qg4 {[%clk 0:00:06]}  Qd6 {[%clk 0:00:06]} 51. Qe4+ {[%clk 0:00:06]}  Kg8 {[%clk 0:00:06]} 52. h5 {[%clk 0:00:06]}  Bg5 {[%clk 0:00:06]} 53. Ng4 {[%clk 0:00:06]}  Kf7 {[%clk 0:00:06]} 54. Qg6+ {[%clk 0:00:06]}  Kf8 {[%clk 0:00:05]} 55. Qe4 {[%clk 0:00:05]}  Kf7 {[%clk 0:00:05]} 56. f4 {[%clk 0:00:06]}  Bf6 {[%clk 0:00:05]} 57. Qg6+ {[%clk 0:00:06]}  Ke7 {[%clk 0:00:06]} 58. Nxf6 {[%clk 0:00:06]}  Qd2+ {[%clk 0:00:06]} 59. Kh3 {[%clk 0:00:06]}  gxf6 {[%clk 0:00:06]} 60. Qg7+ {[%clk 0:00:07]}  Kd6 {[%clk 0:00:06]} 61. Qxf6 {[%clk 0:00:08]}  Qd3 {[%clk 0:00:05]} 62. Qe5+ {[%clk 0:00:07]}  Kd7 {[%clk 0:00:05]} 63. Qxc5 {[%clk 0:00:07]}  Qf1+ {[%clk 0:00:05]} 64. Kh2 {[%clk 0:00:07]}  Qe2+ {[%clk 0:00:04]} 65. Kg1 {[%clk 0:00:08]}  Qe1+ {[%clk 0:00:04]} 66. Kg2 {[%clk 0:00:08]}  Qe2+ {[%clk 0:00:05]} 67. Qf2 {[%clk 0:00:09]}  Qxc4 {[%clk 0:00:05]} 68. g4 {[%clk 0:00:06]}  Qe4+ {[%clk 0:00:05]} 69. Qf3 {[%clk 0:00:06]}  Qc2+ {[%clk 0:00:04]} 70. Kh3 {[%clk 0:00:07]}  Qc1 {[%clk 0:00:05]} 71. g5 {[%clk 0:00:06]}  hxg5 {[%clk 0:00:04]} 72. fxg5 {[%clk 0:00:07]}  Qxg5 {[%clk 0:00:04]} 73. Qf7+ {[%clk 0:00:07]}  Kd6 {[%clk 0:00:04]} 74. Qg6 {[%clk 0:00:07]}  Qe3+ {[%clk 0:00:04]} 75. Qg3+ {[%clk 0:00:06]}  Qxg3+ {[%clk 0:00:04]} 76. Kxg3 {[%clk 0:00:07]}  Ke7 {[%clk 0:00:04]} 77. Kf4 {[%clk 0:00:08]}  Kf6 {[%clk 0:00:05]} 78. h6 {[%clk 0:00:08]}  Kg6 {[%clk 0:00:05]} 79. Ke5 {[%clk 0:00:09]}  Kxh6 {[%clk 0:00:05]} 80. Kxe6 {[%clk 0:00:10]} 1/2-1/2


[Site "https://www.chess.com"]

[Event "Titled Tuesday Blitz July 13 2021"]
[White "Sarkar, Justin"]
[Black "Mezentsev, Ivan"]
[WhiteFideId "2010011"]
[BlackFideId "13706195"]
[WhiteElo "2072"]
[BlackElo "2295"]
[Result "0-1"]
[Round "03"]
[TimeControl "180+1"]
[Date "2021.07.13"]
[WhiteClock "0:00:01"]
[BlackClock "0:01:44"]

1. e4 {[%clk 0:02:58]}  d5 {[%clk 0:02:59]} 2. exd5 {[%clk 0:02:56]}  Nf6 {[%clk 0:02:59]} 3. Bb5+ {[%clk 0:02:18]}  Bd7 {[%clk 0:02:53]} 4. Bc4 {[%clk 0:02:17]}  Bf5 {[%clk 0:02:53]} 5. Nc3 {[%clk 0:02:11]}  Nbd7 {[%clk 0:02:52]} 6. d4 {[%clk 0:01:40]}  Nb6 {[%clk 0:02:51]} 7. Bb3 {[%clk 0:01:37]}  Nbxd5 {[%clk 0:02:49]} 8. Nxd5 {[%clk 0:01:32]}  Nxd5 {[%clk 0:02:48]} 9. Qf3 {[%clk 0:01:28]}  e6 {[%clk 0:02:48]} 10. Ne2 {[%clk 0:01:23]}  c6 {[%clk 0:02:45]} 11. O-O {[%clk 0:01:19]}  Bd6 {[%clk 0:02:43]} 12. c4 {[%clk 0:01:10]}  Nf6 {[%clk 0:02:42]} 13. h3 {[%clk 0:00:50]}  O-O {[%clk 0:02:36]} 14. Bf4 {[%clk 0:00:43]}  Bxf4 {[%clk 0:02:30]} 15. Qxf4 {[%clk 0:00:40]}  Qa5 {[%clk 0:02:23]} 16. Rfd1 {[%clk 0:00:27]}  Rfd8 {[%clk 0:02:22]} 17. Nc3 {[%clk 0:00:15]}  Bg6 {[%clk 0:02:18]} 18. Qe5 {[%clk 0:00:05]}  Qxe5 {[%clk 0:02:02]} 19. dxe5 {[%clk 0:00:06]}  Nd7 {[%clk 0:02:02]} 20. f4 {[%clk 0:00:05]}  Nc5 {[%clk 0:02:01]} 21. g3 {[%clk 0:00:01]}  h5 {[%clk 0:01:44]} 0-1


[Site "https://www.chess.com"]

[Event "Titled Tuesday Blitz July 13 2021"]
[White "Shahade, Gregory"]
[Black "Tokman, Ariel"]
[WhiteFideId "2009064"]
[BlackFideId "117420"]
[WhiteElo "2716"]
[BlackElo "2345"]
[Result "1-0"]
[Round "03"]
[TimeControl "180+1"]
[Date "2021.07.13"]
[WhiteClock "0:01:37"]
[BlackClock "0:02:01"]

1. e4 {[%clk 0:03:00]}  e5 {[%clk 0:02:53]} 2. Nf3 {[%clk 0:03:01]}  Nc6 {[%clk 0:02:53]} 3. Bb5 {[%clk 0:03:01]}  a6 {[%clk 0:02:54]} 4. Ba4 {[%clk 0:03:01]}  Nf6 {[%clk 0:02:53]} 5. O-O {[%clk 0:03:01]}  b5 {[%clk 0:02:48]} 6. Bb3 {[%clk 0:03:01]}  Bc5 {[%clk 0:02:47]} 7. a4 {[%clk 0:02:59]}  Rb8 {[%clk 0:02:47]} 8. c3 {[%clk 0:02:58]}  O-O {[%clk 0:02:37]} 9. d4 {[%clk 0:02:56]}  Bb6 {[%clk 0:02:37]} 10. dxe5 {[%clk 0:02:47]}  Nxe4 {[%clk 0:02:34]} 11. Bc2 {[%clk 0:02:36]}  Nc5 {[%clk 0:02:24]} 12. a5 {[%clk 0:02:09]}  Ba7 {[%clk 0:02:19]} 13. Bxh7+ {[%clk 0:02:07]}  Kxh7 {[%clk 0:02:18]} 14. Ng5+ {[%clk 0:02:06]}  Kg6 {[%clk 0:02:15]} 15. Qg4 {[%clk 0:01:41]}  d5 {[%clk 0:02:07]} 16. Ne6+ {[%clk 0:01:38]}  Kh7 {[%clk 0:02:01]} 17. Qxg7# {[%clk 0:01:37]} 1-0


[Site "https://www.chess.com"]

[Event "Titled Tuesday Blitz July 13 2021"]
[White "Sjugirov, Sanan"]
[Black "Spyropoulos, Nikolaos"]
[WhiteFideId "4189302"]
[BlackFideId "4298977"]
[WhiteElo "2472"]
[BlackElo "2159"]
[Result "1-0"]
[Round "03"]
[TimeControl "180+1"]
[Date "2021.07.13"]
[WhiteClock "0:02:18"]
[BlackClock "0:02:01"]

1. e4 {[%clk 0:03:00]}  e6 {[%clk 0:02:58]} 2. d4 {[%clk 0:03:00]}  d5 {[%clk 0:02:59]} 3. e5 {[%clk 0:03:00]}  c5 {[%clk 0:02:59]} 4. c3 {[%clk 0:03:01]}  Nc6 {[%clk 0:03:00]} 5. Nf3 {[%clk 0:03:01]}  Bd7 {[%clk 0:03:01]} 6. Be2 {[%clk 0:03:00]}  Nge7 {[%clk 0:03:00]} 7. O-O {[%clk 0:02:52]}  Ng6 {[%clk 0:03:00]} 8. g3 {[%clk 0:02:50]}  Be7 {[%clk 0:03:00]} 9. h4 {[%clk 0:02:44]}  O-O {[%clk 0:03:01]} 10. h5 {[%clk 0:02:42]}  Nh8 {[%clk 0:03:01]} 11. h6 {[%clk 0:02:41]}  g6 {[%clk 0:03:01]} 12. dxc5 {[%clk 0:02:37]}  Bxc5 {[%clk 0:02:47]} 13. Bg5 {[%clk 0:02:36]}  Be7 {[%clk 0:02:48]} 14. Bxe7 {[%clk 0:02:32]}  Qxe7 {[%clk 0:02:49]} 15. c4 {[%clk 0:02:30]}  d4 {[%clk 0:02:35]} 16. Nbd2 {[%clk 0:02:24]}  f6 {[%clk 0:02:17]} 17. exf6 {[%clk 0:02:25]}  Qxf6 {[%clk 0:02:16]} 18. Ne4 {[%clk 0:02:24]}  Qf5 {[%clk 0:02:15]} 19. Nfg5 {[%clk 0:02:21]}  Nf7 {[%clk 0:02:07]} 20. Bg4 {[%clk 0:02:20]}  Qe5 {[%clk 0:02:01]} 21. f4 {[%clk 0:02:18]} 1-0


[Site "https://www.chess.com"]

[Event "Titled Tuesday Blitz July 13 2021"]
[White "Sonis, Francesco"]
[Black "Keso, Elias"]
[WhiteFideId "895733"]
[BlackFideId "514942"]
[WhiteElo "2373"]
[BlackElo "1969"]
[Result "1-0"]
[Round "03"]
[TimeControl "180+1"]
[Date "2021.07.13"]
[WhiteClock "0:01:46"]
[BlackClock "0:00:23"]

1. c4 {[%clk 0:03:00]}  g6 {[%clk 0:02:57]} 2. h4 {[%clk 0:02:50]}  Nf6 {[%clk 0:02:56]} 3. Nc3 {[%clk 0:02:49]}  c5 {[%clk 0:02:53]} 4. d3 {[%clk 0:02:45]}  h5 {[%clk 0:02:50]} 5. g3 {[%clk 0:02:42]}  d5 {[%clk 0:02:50]} 6. Bg2 {[%clk 0:02:42]}  d4 {[%clk 0:02:48]} 7. Na4 {[%clk 0:02:40]}  e5 {[%clk 0:02:45]} 8. Bg5 {[%clk 0:02:40]}  Nbd7 {[%clk 0:02:44]} 9. a3 {[%clk 0:02:39]}  Qc7 {[%clk 0:02:43]} 10. Nf3 {[%clk 0:02:39]}  Rb8 {[%clk 0:02:41]} 11. O-O {[%clk 0:02:38]}  a6 {[%clk 0:02:38]} 12. b4 {[%clk 0:02:37]}  cxb4 {[%clk 0:02:38]} 13. axb4 {[%clk 0:02:38]}  Bxb4 {[%clk 0:02:38]} 14. c5 {[%clk 0:02:30]}  Ng4 {[%clk 0:01:53]} 15. Rc1 {[%clk 0:02:11]}  Bxc5 {[%clk 0:01:43]} 16. Nxc5 {[%clk 0:02:07]}  Nxc5 {[%clk 0:01:42]} 17. e3 {[%clk 0:01:59]}  dxe3 {[%clk 0:01:37]} 18. d4 {[%clk 0:01:59]}  exf2+ {[%clk 0:01:21]} 19. Kh1 {[%clk 0:01:58]}  exd4 {[%clk 0:01:11]} 20. Qxd4 {[%clk 0:01:57]}  O-O {[%clk 0:01:02]} 21. Rxc5 {[%clk 0:01:56]}  Qd7 {[%clk 0:00:40]} 22. Rd5 {[%clk 0:01:51]}  Qc6 {[%clk 0:00:37]} 23. Ne5 {[%clk 0:01:49]}  Nxe5 {[%clk 0:00:31]} 24. Rxe5 {[%clk 0:01:50]}  Qc2 {[%clk 0:00:30]} 25. Bh6 {[%clk 0:01:47]}  Bg4 {[%clk 0:00:23]} 26. Rc5 {[%clk 0:01:46]} 1-0


[Site "https://www.chess.com"]

[Event "Titled Tuesday Blitz July 13 2021"]
[White "Svane, Frederik"]
[Black "Miszler, Levente"]
[WhiteFideId "12923044"]
[BlackFideId "763276"]
[WhiteElo "2459"]
[BlackElo "1967"]
[Result "1-0"]
[Round "03"]
[TimeControl "180+1"]
[Date "2021.07.13"]
[WhiteClock "0:00:15"]
[BlackClock "0:00:17"]

1. e4 {[%clk 0:03:00]}  e6 {[%clk 0:02:58]} 2. d4 {[%clk 0:03:01]}  d5 {[%clk 0:02:58]} 3. Nd2 {[%clk 0:03:01]}  Nf6 {[%clk 0:02:58]} 4. e5 {[%clk 0:03:01]}  Nfd7 {[%clk 0:02:57]} 5. f4 {[%clk 0:03:01]}  c5 {[%clk 0:02:56]} 6. c3 {[%clk 0:03:02]}  Nc6 {[%clk 0:02:56]} 7. Ndf3 {[%clk 0:03:02]}  cxd4 {[%clk 0:02:54]} 8. cxd4 {[%clk 0:03:03]}  Be7 {[%clk 0:02:50]} 9. Bd3 {[%clk 0:02:56]}  Qb6 {[%clk 0:02:44]} 10. Ne2 {[%clk 0:02:56]}  f6 {[%clk 0:02:42]} 11. a3 {[%clk 0:02:16]}  O-O {[%clk 0:02:24]} 12. b4 {[%clk 0:02:09]}  a6 {[%clk 0:02:23]} 13. Qc2 {[%clk 0:02:03]}  f5 {[%clk 0:01:51]} 14. Be3 {[%clk 0:01:56]}  Rd8 {[%clk 0:01:37]} 15. O-O {[%clk 0:01:56]}  Nf8 {[%clk 0:01:37]} 16. Nc3 {[%clk 0:01:55]}  Bd7 {[%clk 0:01:37]} 17. Na4 {[%clk 0:01:54]}  Qa7 {[%clk 0:01:35]} 18. Rfc1 {[%clk 0:01:50]}  Rac8 {[%clk 0:01:35]} 19. Qd1 {[%clk 0:01:46]}  Rc7 {[%clk 0:01:30]} 20. Rc3 {[%clk 0:01:40]}  Rdc8 {[%clk 0:01:30]} 21. Rac1 {[%clk 0:01:39]}  Bd8 {[%clk 0:01:27]} 22. Nc5 {[%clk 0:01:05]}  Ne7 {[%clk 0:01:17]} 23. Qd2 {[%clk 0:01:00]}  b6 {[%clk 0:01:13]} 24. Nxa6 {[%clk 0:00:56]}  Rxc3 {[%clk 0:01:08]} 25. Rxc3 {[%clk 0:00:57]}  Rxc3 {[%clk 0:01:02]} 26. Qxc3 {[%clk 0:00:57]}  Nc6 {[%clk 0:01:01]} 27. Nd2 {[%clk 0:00:47]}  Be7 {[%clk 0:00:56]} 28. Nb3 {[%clk 0:00:42]}  Qb7 {[%clk 0:00:46]} 29. a4 {[%clk 0:00:36]}  g5 {[%clk 0:00:31]} 30. fxg5 {[%clk 0:00:36]}  Ng6 {[%clk 0:00:30]} 31. b5 {[%clk 0:00:34]}  Nd8 {[%clk 0:00:28]} 32. Qc7 {[%clk 0:00:31]}  f4 {[%clk 0:00:22]} 33. Bd2 {[%clk 0:00:26]}  Qxc7 {[%clk 0:00:19]} 34. Nxc7 {[%clk 0:00:27]}  Bxg5 {[%clk 0:00:20]} 35. a5 {[%clk 0:00:23]}  bxa5 {[%clk 0:00:20]} 36. Nxa5 {[%clk 0:00:20]}  Ne7 {[%clk 0:00:19]} 37. b6 {[%clk 0:00:15]}  Bc8 {[%clk 0:00:18]} 38. Ba6 {[%clk 0:00:14]}  Bxa6 {[%clk 0:00:17]} 39. Nxa6 {[%clk 0:00:15]}  Nec6 {[%clk 0:00:17]} 40. Nxc6 {[%clk 0:00:14]}  Nxc6 {[%clk 0:00:17]} 41. b7 {[%clk 0:00:15]} 1-0


[Site "https://www.chess.com"]

[Event "Titled Tuesday Blitz July 13 2021"]
[White "Tomiello, Lucas Costamilan"]
[Black "Yeletsky, Ivan"]
[WhiteFideId "22701940"]
[BlackFideId "24180327"]
[WhiteElo "1945"]
[BlackElo "2344"]
[Result "0-1"]
[Round "03"]
[TimeControl "180+1"]
[Date "2021.07.13"]
[WhiteClock "0:00:18"]
[BlackClock "0:01:19"]

1. e4 {[%clk 0:03:00]}  c5 {[%clk 0:02:59]} 2. Nf3 {[%clk 0:02:57]}  d6 {[%clk 0:02:59]} 3. d4 {[%clk 0:02:58]}  cxd4 {[%clk 0:02:59]} 4. Nxd4 {[%clk 0:02:58]}  Nf6 {[%clk 0:03:00]} 5. Nc3 {[%clk 0:02:59]}  a6 {[%clk 0:02:59]} 6. h3 {[%clk 0:02:59]}  e5 {[%clk 0:02:59]} 7. Nde2 {[%clk 0:02:59]}  h5 {[%clk 0:02:58]} 8. Bg5 {[%clk 0:02:58]}  Be6 {[%clk 0:02:58]} 9. f4 {[%clk 0:02:58]}  Nbd7 {[%clk 0:02:53]} 10. f5 {[%clk 0:02:51]}  Bc4 {[%clk 0:02:52]} 11. Ng3 {[%clk 0:02:51]}  Rc8 {[%clk 0:02:51]} 12. Bxc4 {[%clk 0:02:46]}  Rxc4 {[%clk 0:02:50]} 13. Qd3 {[%clk 0:02:35]}  b5 {[%clk 0:02:33]} 14. O-O-O {[%clk 0:02:11]}  Be7 {[%clk 0:02:29]} 15. Bxf6 {[%clk 0:01:51]}  Nxf6 {[%clk 0:02:28]} 16. Rhe1 {[%clk 0:01:48]}  Qc7 {[%clk 0:02:25]} 17. Nf1 {[%clk 0:01:37]}  b4 {[%clk 0:02:08]} 18. Nd5 {[%clk 0:01:24]}  Nxd5 {[%clk 0:02:07]} 19. Qxd5 {[%clk 0:01:24]}  Rxc2+ {[%clk 0:02:06]} 20. Kb1 {[%clk 0:01:24]}  O-O {[%clk 0:02:03]} 21. Ne3 {[%clk 0:01:22]}  Rc5 {[%clk 0:02:01]} 22. Qd3 {[%clk 0:01:16]}  Bg5 {[%clk 0:01:59]} 23. Nd5 {[%clk 0:01:14]}  Qb7 {[%clk 0:01:57]} 24. Qf3 {[%clk 0:01:06]}  b3 {[%clk 0:01:51]} 25. axb3 {[%clk 0:00:44]}  Rb5 {[%clk 0:01:51]} 26. b4 {[%clk 0:00:41]}  g6 {[%clk 0:01:51]} 27. f6 {[%clk 0:00:36]}  Rxb4 {[%clk 0:01:50]} 28. Nxb4 {[%clk 0:00:35]}  Qxb4 {[%clk 0:01:51]} 29. Qc3 {[%clk 0:00:35]}  Qb6 {[%clk 0:01:49]} 30. Rf1 {[%clk 0:00:30]}  Rb8 {[%clk 0:01:47]} 31. Rd5 {[%clk 0:00:30]}  Be3 {[%clk 0:01:47]} 32. Rfd1 {[%clk 0:00:25]}  Bc5 {[%clk 0:01:39]} 33. g4 {[%clk 0:00:20]}  h4 {[%clk 0:01:39]} 34. g5 {[%clk 0:00:19]}  a5 {[%clk 0:01:35]} 35. Rxc5 {[%clk 0:00:19]}  dxc5 {[%clk 0:01:35]} 36. Rd5 {[%clk 0:00:19]}  c4 {[%clk 0:01:20]} 37. Qxa5 {[%clk 0:00:18]}  Qxb2# {[%clk 0:01:19]} 0-1


[Site "https://www.chess.com"]

[Event "Titled Tuesday Blitz July 13 2021"]
[White "Tristan, Leonardo"]
[Black "Prraneeth Vuppala"]
[WhiteFideId "113816"]
[BlackFideId "46622373"]
[WhiteElo "2404"]
[BlackElo "1759"]
[Result "0-1"]
[Round "03"]
[TimeControl "180+1"]
[Date "2021.07.13"]
[WhiteClock "0:00:02"]
[BlackClock "0:00:11"]

1. d4 {[%clk 0:03:00]}  Nf6 {[%clk 0:02:59]} 2. Bg5 {[%clk 0:03:01]}  d5 {[%clk 0:02:49]} 3. Nd2 {[%clk 0:03:00]}  e6 {[%clk 0:02:48]} 4. e3 {[%clk 0:02:58]}  h6 {[%clk 0:02:44]} 5. Bh4 {[%clk 0:02:58]}  c5 {[%clk 0:02:41]} 6. c3 {[%clk 0:02:57]}  Nbd7 {[%clk 0:02:40]} 7. Bd3 {[%clk 0:02:51]}  e5 {[%clk 0:02:13]} 8. Ne2 {[%clk 0:02:50]}  Bd6 {[%clk 0:02:03]} 9. O-O {[%clk 0:02:43]}  O-O {[%clk 0:02:03]} 10. e4 {[%clk 0:02:36]}  Qc7 {[%clk 0:01:59]} 11. Bxf6 {[%clk 0:02:21]}  Nxf6 {[%clk 0:01:43]} 12. dxe5 {[%clk 0:02:19]}  Bxe5 {[%clk 0:01:43]} 13. f4 {[%clk 0:02:20]}  Bd6 {[%clk 0:01:07]} 14. e5 {[%clk 0:02:19]}  c4 {[%clk 0:01:08]} 15. exf6 {[%clk 0:01:54]}  cxd3 {[%clk 0:01:00]} 16. Nd4 {[%clk 0:01:52]}  Bxf4 {[%clk 0:00:54]} 17. N2f3 {[%clk 0:01:23]}  d2 {[%clk 0:00:47]} 18. Kh1 {[%clk 0:00:32]}  Bg4 {[%clk 0:00:31]} 19. h3 {[%clk 0:00:31]}  Bh5 {[%clk 0:00:31]} 20. Nf5 {[%clk 0:00:15]}  gxf6 {[%clk 0:00:27]} 21. g4 {[%clk 0:00:15]}  Bg6 {[%clk 0:00:27]} 22. N3d4 {[%clk 0:00:16]}  Rfe8 {[%clk 0:00:24]} 23. Qf3 {[%clk 0:00:16]}  Be3 {[%clk 0:00:18]} 24. h4 {[%clk 0:00:06]}  Bxd4 {[%clk 0:00:18]} 25. cxd4 {[%clk 0:00:06]}  Bxf5 {[%clk 0:00:17]} 26. Qxf5 {[%clk 0:00:05]}  Re2 {[%clk 0:00:14]} 27. Rf2 {[%clk 0:00:02]}  Re1+ {[%clk 0:00:12]} 28. Rf1 {[%clk 0:00:03]}  Rae8 {[%clk 0:00:11]} 29. Qxf6 {[%clk 0:00:02]}  Rxa1 {[%clk 0:00:11]} 0-1


[Site "https://www.chess.com"]